bitfinex/quotes_BTCUSD_20241226
["timestamp","ask_amount","ask_price","bid_price","bid_amount"]
[1735243529158,0.207999,96154.0,96141.0,0.208027]
[1735243529904,0.207995,96156.0,96142.0,0.208025]
[1735243530387,0.207999,96154.0,96142.0,0.208025]
[1735243530899,0.208995,96156.0,96142.0,0.208025]
[1735243531382,0.209995,96156.0,96142.0,0.208025]
[1735243531819,0.208995,96156.0,96142.0,0.208025]
[1735243532022,0.208995,96156.0,96140.0,0.09051985]
[1735243532326,0.00130003,96155.0,96140.0,0.09051985]
[1735243533489,0.207999,96154.0,96140.0,0.09051985]
[1735243533724,0.207999,96154.0,96141.0,0.208027]
[1735243533974,0.415998,96154.0,96141.0,0.208027]
[1735243534691,0.207999,96154.0,96141.0,0.208027]
[1735243535167,0.415999,96154.0,96141.0,0.208027]
[1735243535813,0.208008,96150.0,96141.0,0.208027]
[1735243535987,0.208003,96152.0,96141.0,0.208027]
[1735243537547,0.210003,96152.0,96141.0,0.208027]
[1735243537756,0.002,96152.0,96145.0,0.208017]
[1735243538359,0.004,96152.0,96145.0,0.208017]
[1735243539060,0.207996,96156.0,96145.0,0.208017]
[1735243539352,0.002,96152.0,96145.0,0.208017]
[1735243539686,0.207996,96156.0,96145.0,0.208017]
[1735243539889,0.002,96152.0,96145.0,0.208017]
[1735243540094,0.004,96152.0,96145.0,0.208017]
[1735243540470,0.210004,96152.0,96141.0,0.416054]
[1735243540738,0.25182112,96152.0,96141.0,0.208027]
[1735243540949,0.210004,96152.0,96143.0,0.208023]
[1735243541109,0.208004,96152.0,96143.0,0.208023]
[1735243541661,0.210004,96152.0,96143.0,0.208023]
[1735243541887,0.208004,96152.0,96143.0,0.208023]
[1735243542072,0.210004,96152.0,96142.0,8.56e-05]
[1735243542507,0.212004,96152.0,96142.0,8.56e-05]
[1735243542895,0.208004,96152.0,96142.0,8.56e-05]
[1735243543098,0.210004,96152.0,96142.0,8.56e-05]
[1735243543302,0.210004,96152.0,96143.0,0.208023]
[1735243543303,0.212004,96152.0,96143.0,0.208023]
[1735243543666,0.210004,96152.0,96143.0,0.208023]
[1735243543861,0.212004,96152.0,96142.0,8.56e-05]
[1735243544453,0.210004,96152.0,96142.0,8.56e-05]
[1735243544822,0.212004,96152.0,96142.0,8.56e-05]
[1735243545247,0.210004,96152.0,96142.0,8.56e-05]
[1735243545467,0.212004,96152.0,96142.0,8.56e-05]
[1735243545672,0.214004,96152.0,96142.0,8.56e-05]
[1735243545874,0.214004,96152.0,96143.0,0.208023]
[1735243546075,0.212004,96152.0,96143.0,0.208023]
[1735243546268,0.214004,96152.0,96143.0,0.208023]
[1735243546581,0.214004,96152.0,96142.0,8.56e-05]
[1735243546827,0.02758255,96151.0,96142.0,8.56e-05]
[1735243547036,0.208017,96146.0,96137.0,0.11968286]
[1735243547234,0.208024,96143.0,96130.0,0.09051985]
[1735243547439,0.208017,96146.0,96131.0,0.208047]
[1735243548076,0.208026,96142.0,96131.0,0.208047]
[1735243548481,0.208034,96138.0,96133.0,0.03626345]
[1735243548684,0.208042,96134.0,96133.0,0.03626345]
[1735243548893,0.0208034,96137.0,96123.0,0.208066]
[1735243549102,0.0208034,96137.0,96123.0,0.249713]
[1735243549299,0.0208034,96137.0,96133.0,0.001]
[1735243549517,0.416077,96136.0,96133.0,0.001]
[1735243549721,0.416077,96136.0,96133.0,0.002]
[1735243549919,0.208038,96136.0,96133.0,0.006]
[1735243550299,0.208038,96136.0,96133.0,0.004]
[1735243550638,0.2270479,96136.0,96133.0,0.004]
[1735243551149,0.2270479,96136.0,96123.0,0.191647]
[1735243551351,0.2270479,96136.0,96123.0,0.041647]
[1735243551352,0.208047,96132.0,96123.0,0.041647]
[1735243551559,0.0190099,96136.0,96122.0,0.03505598]
[1735243551763,0.03230448,96135.0,96133.0,0.001]
[1735243551964,0.03230448,96135.0,96120.0,0.16951984]
[1735243552167,0.03230448,96135.0,96120.0,0.24051985]
[1735243552377,0.208051,96130.0,96120.0,0.24051985]
[1735243552580,0.208051,96130.0,96120.0,0.09051985]
[1735243552894,0.208051,96130.0,96120.0,0.12627909]
[1735243554029,0.001,96135.0,96120.0,0.12627909]
[1735243554239,0.208083,96116.0,96102.0,0.21354869]
[1735243554518,0.208083,96116.0,96108.0,0.15015445]
[1735243554724,0.208083,96116.0,96108.0,0.18687695]
[1735243555371,0.208083,96116.0,96108.0,0.04187695]
[1735243555767,0.20792443,96116.0,96108.0,0.04387695]
[1735243556373,0.20792443,96116.0,96108.0,0.04187695]
[1735243556604,0.208077,96119.0,96108.0,0.04187695]
[1735243556806,0.10398632,96130.0,96108.0,0.04287695]
[1735243556807,0.208083,96116.0,96108.0,0.04287695]
[1735243557016,0.083,96124.0,96108.0,0.04287695]
[1735243557183,0.208092,96112.0,96108.0,0.04287695]
[1735243557385,0.208084,96115.0,96108.0,0.04287695]
[1735243557788,0.0416163,96114.0,96108.0,0.04287695]
[1735243558039,0.208079,96117.0,96108.0,0.03787695]
[1735243558227,0.002,96116.0,96108.0,0.03787695]
[1735243558624,0.002,96115.0,96108.0,0.03687695]
[1735243559582,0.208084,96115.0,96108.0,0.03687695]
[1735243559715,0.002,96115.0,96108.0,0.03687695]
[1735243560135,0.003,96115.0,96108.0,0.03687695]
[1735243562647,0.01819232,96115.0,96108.0,0.03687695]
[1735243563525,0.003,96115.0,96111.0,0.15]
[1735243563739,0.003,96115.0,96114.0,0.15]
[1735243563947,0.003,96115.0,96114.0,0.33218632]
[1735243564359,0.002,96115.0,96114.0,0.33218632]
[1735243564505,0.208022,96144.0,96129.0,0.208051]
[1735243564701,0.20803,96140.0,96130.0,0.09051985]
[1735243565690,0.41606,96140.0,96130.0,0.09051985]
[1735243565890,0.41806,96140.0,96130.0,0.09051985]
[1735243566109,0.41806,96140.0,96133.0,0.0922932]
[1735243567001,0.42106,96140.0,96133.0,0.02029319]
[1735243567215,0.208032,96139.0,96133.0,0.02029319]
[1735243567424,0.208041,96135.0,96133.0,0.02029319]
[1735243567854,0.208041,96135.0,96128.0,0.1384398]
[1735243568252,0.416082,96135.0,96128.0,0.1384398]
[1735243568673,0.416082,96135.0,96133.0,0.002]
[1735243568884,0.208041,96135.0,96125.0,0.15]
[1735243569090,0.208041,96135.0,96128.0,0.0426644]
[1735243569305,0.208041,96135.0,96125.0,0.15]
[1735243569785,0.209041,96135.0,96125.0,0.15]
[1735243570000,0.209041,96135.0,96125.0,0.2884398]
[1735243570203,0.208041,96135.0,96125.0,0.2884398]
[1735243570425,0.210041,96135.0,96125.0,0.2884398]
[1735243571427,0.210041,96135.0,96126.0,0.1384398]
[1735243571877,0.0001712,96140.0,96126.0,0.1384398]
[1735243572104,0.001,96135.0,96130.0,0.09051985]
[1735243572309,0.001,96135.0,96125.0,0.25864288]
[1735243572657,0.0001712,96140.0,96130.0,0.208049]
[1735243572864,0.002,96135.0,96130.0,0.29856885]
[1735243573065,0.002,96135.0,96130.0,0.208049]
[1735243573503,0.0001712,96140.0,96130.0,0.208049]
[1735243573708,0.0021712,96140.0,96130.0,0.208049]
[1735243574135,0.208032,96139.0,96130.0,0.208049]
[1735243574541,0.0021712,96140.0,96130.0,0.208049]
[1735243574780,0.208049,96132.0,96125.0,0.04220309]
[1735243574952,0.208049,96132.0,96124.0,0.15]
[1735243575377,0.001,96135.0,96127.0,0.15]
[1735243575719,0.0001712,96140.0,96139.0,0.208032]
[1735243575925,0.0001712,96140.0,96137.0,0.208035]
[1735243576354,0.0001712,96140.0,96130.0,0.09051985]
[1735243576557,0.0001712,96140.0,96129.0,0.15]
[1735243576783,0.009,96135.0,96129.0,0.15]
[1735243577576,0.009,96135.0,96131.0,0.15]
[1735243577818,0.009,96135.0,96134.0,0.208042]
[1735243578102,0.009,96135.0,96134.0,0.358042]
[1735243578341,0.00022475,96140.0,96139.0,0.208032]
[1735243578605,0.00222475,96140.0,96139.0,0.208032]
[1735243578841,0.00222475,96140.0,96135.0,0.15]
[1735243579086,0.00022475,96140.0,96136.0,0.416075]
[1735243579298,0.00022475,96140.0,96136.0,0.208037]
[1735243579525,0.00022475,96140.0,96135.0,0.15]
[1735243580166,0.00122475,96140.0,96134.0,0.24235707]
[1735243580605,0.0001712,96135.0,96134.0,0.24235707]
[1735243581109,0.0001712,96135.0,96134.0,0.28426374]
[1735243582015,0.0001712,96135.0,96134.0,0.21226373]
[1735243582149,0.0001712,96135.0,96134.0,0.21326373]
[1735243582902,0.0001712,96135.0,96134.0,0.19290667]
[1735243583329,0.15940995,96148.0,96135.0,0.20804]
[1735243583564,0.15940995,96148.0,96138.0,0.208032]
[1735243584042,0.208015,96147.0,96135.0,0.20804]
[1735243585976,0.210015,96147.0,96135.0,0.20804]
[1735243586493,0.0013001,96146.0,96134.0,0.04190667]
[1735243586736,0.208049,96132.0,96130.0,0.13857955]
[1735243587144,0.208049,96132.0,96130.0,0.06657954]
[1735243587744,0.208067,96123.0,96117.0,0.04165]
[1735243587969,0.208067,96123.0,96115.0,0.1845864]
[1735243588147,0.208067,96123.0,96115.0,0.1695864]
[1735243588775,0.208067,96123.0,96116.0,0.15]
[1735243588999,0.208067,96123.0,96117.0,0.009]
[1735243589247,0.208077,96118.0,96117.0,0.009]
[1735243589472,0.208077,96118.0,96117.0,0.006]
[1735243590551,0.31206332,96118.0,96117.0,0.00605355]
[1735243590754,0.39336332,96118.0,96117.0,5.355e-05]
[1735243593098,0.416302,96084.0,96081.0,0.15649299]
[1735243593303,0.00130101,96083.0,96081.0,0.11483056]
[1735243593509,0.208155,96082.0,96081.0,0.11483056]
[1735243593716,0.31214132,96082.0,96081.0,0.00015445]
[1735243594144,0.31214132,96082.0,96081.0,0.00115445]
[1735243594345,0.31214132,96082.0,96081.0,0.00015445]
[1735243594346,0.37920273,96082.0,96081.0,0.00015445]
[1735243594763,0.37920273,96082.0,96081.0,0.00215445]
[1735243595148,0.62920273,96082.0,96081.0,0.00315445]
[1735243595381,0.62920273,96082.0,96081.0,0.00215445]
[1735243595587,0.75220273,96082.0,96081.0,0.00015445]
[1735243595789,0.75220273,96082.0,96081.0,0.00115445]
[1735243595990,0.75720273,96082.0,96081.0,0.00215445]
[1735243596935,0.1,96075.0,96038.0,0.01366041]
[1735243597149,0.208221,96052.0,96045.0,0.00051525]
[1735243598250,0.208221,96052.0,96045.0,0.00151525]
[1735243598460,0.208222,96051.0,96045.0,0.00151525]
[1735243598654,0.416445,96051.0,96045.0,0.00151525]
[1735243598882,0.208222,96051.0,96045.0,0.00151525]
[1735243599053,0.416446,96051.0,96045.0,0.00151525]
[1735243599261,0.208222,96051.0,96045.0,0.00151525]
[1735243599707,0.208229,96048.0,96045.0,0.00151525]
[1735243599909,0.208233,96046.0,96045.0,0.00051525]
[1735243600780,0.208233,96046.0,96045.0,0.00151525]
[1735243601491,0.31521932,96046.0,96045.0,0.00151525]
[1735243601720,0.39046857,96046.0,96045.0,0.00151525]
[1735243602132,0.39146857,96046.0,96045.0,0.00151525]
[1735243603055,0.31621932,96046.0,96045.0,0.00151525]
[1735243606475,0.31621932,96046.0,96045.0,0.00160085]
[1735243608897,0.33707932,96046.0,96045.0,0.00160085]
[1735243609110,0.31621932,96046.0,96045.0,0.00160085]
[1735243611824,0.66511932,96046.0,96045.0,8.5e-07]
[1735243612025,0.91910564,96046.0,96045.0,8.5e-07]
[1735243612641,0.91610564,96046.0,96045.0,8.5e-07]
[1735243612793,0.91910564,96046.0,96045.0,8.5e-07]
[1735243613201,0.91710564,96046.0,96045.0,8.5e-07]
[1735243613406,0.95475448,96046.0,96045.0,8.5e-07]
[1735243613607,1.06420088,96046.0,96045.0,8.5e-07]
[1735243614004,1.07020088,96046.0,96045.0,8.5e-07]
[1735243614248,1.04055204,96046.0,96045.0,8.5e-07]
[1735243617133,1.04055204,96046.0,96020.0,8.55e-05]
[1735243617134,0.208326,96004.0,96001.0,0.00419934]
[1735243617336,0.208326,96004.0,96001.0,0.00435363]
[1735243619122,0.208326,96004.0,96001.0,0.00835363]
[1735243619322,0.208307,96013.0,96001.0,0.00835363]
[1735243619323,0.208307,96013.0,96001.0,0.01035363]
[1735243619525,0.208322,96006.0,96001.0,0.01035363]
[1735243619725,0.00130204,96005.0,96001.0,0.01035363]
[1735243619954,0.00130204,96005.0,96001.0,0.00835363]
[1735243620540,0.02226444,96005.0,96001.0,0.00415429]
[1735243620867,0.208325,96004.0,96001.0,0.00015429]
[1735243621023,0.208328,96002.0,96001.0,0.00015429]
[1735243621424,0.31231432,96002.0,96001.0,0.00015429]
[1735243625663,0.31531432,96002.0,96001.0,0.00015429]
[1735243625837,0.3579158,96002.0,96001.0,0.00015429]
[1735243626348,0.3649158,96002.0,96001.0,0.00115429]
[1735243627092,0.3649158,96002.0,95976.0,0.43796524]
[1735243627093,0.20835,95992.0,95976.0,0.43796524]
[1735243627272,0.10398632,96001.0,95981.0,0.208374]
[1735243627479,0.208341,95997.0,95985.0,0.208364]
[1735243627710,0.208335,95999.0,95985.0,0.208364]
[1735243627914,0.01,96002.0,95987.0,0.09051985]
[1735243628130,0.01,96002.0,96001.0,0.0778]
[1735243628749,0.007,96002.0,96001.0,0.0778]
[1735243629103,0.208303,96014.0,96001.0,0.0778]
[1735243629259,0.208295,96018.0,96001.0,0.0778]
[1735243629466,0.00130192,96017.0,96001.0,0.0778]
[1735243629662,0.00130192,96017.0,96001.0,0.12117696]
[1735243629866,0.00130192,96017.0,96003.0,0.208326]
[1735243630095,0.208309,96011.0,96001.0,0.12217696]
[1735243630298,0.208309,96011.0,96001.0,0.12017696]
[1735243630959,0.208298,96016.0,96002.0,0.208328]
[1735243631185,0.04578849,96017.0,96006.0,0.09051985]
[1735243631186,0.004,96017.0,96006.0,0.09051985]
[1735243631373,0.004,96017.0,96014.0,0.208302]
[1735243631545,0.004,96017.0,96016.0,0.335398]
[1735243631789,0.002,96018.0,96016.0,0.36749993]
[1735243631966,0.208254,96037.0,96016.0,0.1271]
[1735243632167,0.105288,96036.0,96016.0,0.1271]
[1735243632372,0.001,96017.0,96016.0,0.1271]
[1735243632578,0.001,96017.0,96016.0,0.16079451]
[1735243632816,0.208269,96030.0,96017.0,0.208296]
[1735243633678,0.208259,96034.0,96018.0,0.208294]
[1735243633880,0.00130179,96033.0,96016.0,0.13125461]
[1735243634308,0.208278,96026.0,96016.0,0.13125461]
[1735243634889,0.00130179,96025.0,96016.0,0.13325461]
[1735243635112,0.00130179,96025.0,96016.0,0.12925461]
[1735243635308,0.00130179,96025.0,96016.0,0.12725461]
[1735243636162,0.208274,96028.0,96017.0,0.208296]
[1735243636296,0.00130179,96027.0,96017.0,0.208296]
[1735243636717,0.001,96030.0,96022.0,0.208285]
[1735243636923,0.001,96030.0,96016.0,0.12825461]
[1735243637179,0.001,96030.0,96023.0,0.208282]
[1735243637387,0.001,96030.0,96016.0,0.12825461]
[1735243638270,0.20824,96043.0,96020.0,0.09051985]
[1735243638501,0.20824,96043.0,96030.0,0.09051985]
[1735243638706,0.001,96030.0,96020.0,0.09051985]
[1735243638904,0.001,96030.0,96027.0,0.208273]
[1735243639115,0.208249,96039.0,96022.0,0.208284]
[1735243639412,0.208249,96039.0,96026.0,0.208275]
[1735243639561,0.01374703,96038.0,96026.0,0.208275]
[1735243639774,0.208249,96039.0,96026.0,0.208275]
[1735243639979,0.208249,96039.0,96028.0,0.208272]
[1735243640173,0.42648,96043.0,96028.0,0.208272]
[1735243640401,0.208249,96039.0,96028.0,0.208272]
[1735243640611,0.21524,96043.0,96028.0,0.208272]
[1735243640964,0.002,96039.0,96032.0,0.09239517]
[1735243641164,0.20825,96038.0,96032.0,0.09239517]
[1735243641950,0.208244,96041.0,96032.0,0.09239517]
[1735243642154,0.208248,96039.0,96031.0,0.02039516]
[1735243642618,0.002,96038.0,96031.0,0.02039516]
[1735243642991,0.208253,96037.0,96031.0,0.02039516]
[1735243643963,0.208261,96033.0,96031.0,0.02039516]
[1735243644163,0.416532,96031.0,96023.0,0.13847478]
[1735243644504,0.00130178,96030.0,96023.0,0.13847478]
[1735243645292,0.208261,96033.0,96017.0,0.15]
[1735243645293,0.208281,96024.0,96017.0,0.15]
[1735243646540,0.208281,96024.0,96016.0,0.16912063]
[1735243646541,0.208285,96022.0,96016.0,0.16912063]
[1735243646903,0.208294,96018.0,96016.0,0.00024021]
[1735243647113,0.00130191,96017.0,96012.0,0.06671498]
[1735243647338,0.208303,96014.0,96012.0,0.06671498]
[1735243647568,0.208311,96011.0,96004.0,0.33446104]
[1735243647787,0.208303,96014.0,96004.0,0.33446104]
[1735243647990,0.00130193,96013.0,96004.0,0.33446104]
[1735243648201,0.00130193,96013.0,96012.0,0.005]
[1735243648380,0.00130193,96013.0,96004.0,0.33446104]
[1735243648520,0.00130193,96013.0,96012.0,0.003]
[1735243649373,0.00430193,96013.0,96012.0,0.003]
[1735243649956,0.00430193,96013.0,96004.0,0.04334369]
[1735243650169,0.00430193,96013.0,96001.0,0.1500856]
[1735243650445,0.00530193,96013.0,96001.0,0.1500856]
[1735243650838,0.00430193,96013.0,96002.0,0.208328]
[1735243651050,0.00230193,96013.0,96003.0,0.15]
[1735243651274,0.00530193,96013.0,96003.0,0.15]
[1735243651608,0.00430193,96013.0,96003.0,0.15]
[1735243651809,0.00430193,96013.0,96002.0,0.208328]
[1735243652036,0.00830193,96013.0,96002.0,0.208328]
[1735243652166,0.00230193,96013.0,96002.0,0.208328]
[1735243652368,0.00230193,96013.0,96001.0,0.19341327]
[1735243652578,0.00530193,96013.0,96002.0,0.208328]
[1735243653371,0.00430193,96013.0,96002.0,0.208328]
[1735243653580,0.00530193,96013.0,96002.0,0.208328]
[1735243653926,0.00430193,96013.0,96002.0,0.208328]
[1735243654134,0.006,96013.0,96001.0,0.19341327]
[1735243654330,0.007,96013.0,96001.0,0.40174327]
[1735243654590,0.007,96013.0,96002.0,0.416656]
[1735243654942,0.006,96013.0,96002.0,0.416656]
[1735243655373,0.00145616,96018.0,96002.0,0.416656]
[1735243655741,0.003,96013.0,96005.0,0.20832]
[1735243655940,0.003,96013.0,96002.0,0.208328]
[1735243656349,0.004,96013.0,96002.0,0.416656]
[1735243656553,0.04607442,96013.0,96002.0,0.208328]
[1735243656759,0.04507442,96013.0,96002.0,0.208328]
[1735243656960,0.00130187,96015.0,96002.0,0.208328]
[1735243657199,0.001,96013.0,96002.0,0.208328]
[1735243657378,0.004,96013.0,96002.0,0.208328]
[1735243657554,0.208302,96014.0,96002.0,0.2084136]
[1735243657770,0.208305,96013.0,96002.0,8.56e-05]
[1735243658094,0.004,96013.0,96002.0,8.56e-05]
[1735243658658,0.001,96013.0,96002.0,8.56e-05]
[1735243658861,0.004,96013.0,96002.0,8.56e-05]
[1735243659260,0.003,96013.0,96002.0,8.56e-05]
[1735243660404,0.004,96013.0,96002.0,8.56e-05]
[1735243661095,0.00130193,96012.0,96002.0,8.56e-05]
[1735243661301,0.20960893,96012.0,96002.0,8.56e-05]
[1735243661507,0.208316,96008.0,96002.0,8.56e-05]
[1735243661680,0.208307,96012.0,96002.0,8.56e-05]
[1735243661817,0.00130199,96011.0,96002.0,8.56e-05]
[1735243662045,0.208326,96004.0,96002.0,8.56e-05]
[1735243662243,0.15735083,96003.0,96002.0,8.56e-05]
[1735243663503,0.15735083,96003.0,96002.0,0.0010856]
[1735243663747,0.1052885,96003.0,96002.0,0.0010856]
[1735243664066,0.416623,96010.0,96002.0,0.0010856]
[1735243664277,0.00130206,96009.0,96002.0,0.0020856]
[1735243664504,0.00130206,96009.0,96002.0,0.0010856]
[1735243664659,0.208315,96008.0,96002.0,0.0010856]
[1735243664864,0.007,96003.0,96002.0,0.0020856]
[1735243665059,0.007,96003.0,96002.0,0.0010856]
[1735243665307,0.007,96003.0,96002.0,8.56e-05]
[1735243665509,0.007,96003.0,96002.0,0.0010856]
[1735243665731,0.01,96003.0,96002.0,0.0010856]
[1735243666144,0.007,96003.0,96002.0,0.0010856]
[1735243666503,0.009,96003.0,96002.0,0.0010856]
[1735243666702,0.002,96003.0,96002.0,8.56e-05]
[1735243666932,0.005,96003.0,96002.0,8.56e-05]
[1735243667135,0.007,96003.0,95990.0,0.04246241]
[1735243667337,0.208331,96001.0,95990.0,0.04246241]
[1735243667489,0.00130218,96000.0,95985.0,0.15]
[1735243667857,0.208341,95997.0,95985.0,0.15]
[1735243668057,0.208352,95992.0,95978.0,0.09259171]
[1735243668331,0.0788,96002.0,95979.0,0.15]
[1735243668539,0.208351,95992.0,95979.0,0.04249248]
[1735243668749,0.208351,95992.0,95979.0,0.208378]
[1735243669097,0.00130223,95991.0,95979.0,0.208378]
[1735243669529,0.00130223,95991.0,95977.0,0.0463]
[1735243669722,0.208355,95990.0,95977.0,0.0463]
[1735243670052,0.18278632,96002.0,95977.0,0.0463]
[1735243670272,0.208353,95991.0,95977.0,0.0463]
[1735243670624,0.208353,95991.0,95979.0,8.56e-05]
[1735243671848,0.212353,95991.0,95979.0,8.56e-05]
[1735243672671,0.006,95991.0,95979.0,8.56e-05]
[1735243673124,0.208359,95988.0,95979.0,8.56e-05]
[1735243673329,0.20837,95983.0,95979.0,8.56e-05]
[1735243673564,0.00130238,95982.0,95979.0,8.56e-05]
[1735243673772,0.39116032,95981.0,95979.0,8.56e-05]
[1735243673988,0.00130251,95980.0,95979.0,8.56e-05]
[1735243674994,0.00130251,95980.0,95979.0,0.0010856]
[1735243675345,0.08432578,95980.0,95979.0,0.0010856]
[1735243675561,0.08432578,95980.0,95979.0,0.0020856]
[1735243675830,0.208361,95987.0,95979.0,0.0020856]
[1735243676635,0.208341,95997.0,95979.0,0.0010856]
[1735243676833,0.20835,95993.0,95980.0,0.208376]
[1735243677031,0.007,95987.0,95980.0,0.208376]
[1735243677404,0.007,95987.0,95979.0,0.04232339]
[1735243677604,0.015,95987.0,95979.0,0.0010856]
[1735243677813,0.008,95987.0,95979.0,8.56e-05]
[1735243678075,0.011,95987.0,95979.0,8.56e-05]
[1735243678287,0.014,95987.0,95979.0,8.56e-05]
[1735243678487,0.02536523,95987.0,95979.0,8.56e-05]
[1735243678943,0.02636523,95987.0,95979.0,8.56e-05]
[1735243679116,0.02636523,95987.0,95979.0,0.04215803]
[1735243679320,0.02536523,95987.0,95979.0,8.56e-05]
[1735243679523,0.02636523,95987.0,95979.0,8.56e-05]
[1735243679850,0.02936523,95987.0,95979.0,8.56e-05]
[1735243680054,0.04430732,95986.0,95979.0,8.56e-05]
[1735243681304,0.04530732,95986.0,95979.0,8.56e-05]
[1735243681505,0.04830732,95986.0,95979.0,8.56e-05]
[1735243681659,0.04730732,95986.0,95979.0,0.04213259]
[1735243681867,0.04730732,95986.0,95979.0,8.56e-05]
[1735243682045,0.04830732,95986.0,95979.0,8.56e-05]
[1735243682245,0.004,95986.0,95979.0,8.56e-05]
[1735243682476,0.208365,95985.0,95979.0,8.56e-05]
[1735243682874,0.003,95986.0,95979.0,8.56e-05]
[1735243683174,0.004,95986.0,95979.0,8.56e-05]
[1735243683410,0.001,95986.0,95979.0,8.56e-05]
[1735243683723,0.004,95986.0,95979.0,0.04240519]
[1735243683925,0.001,95986.0,95979.0,0.04240519]
[1735243684141,0.001,95986.0,95979.0,8.56e-05]
[1735243684343,0.003,95986.0,95979.0,8.56e-05]
[1735243684547,0.001,95985.0,95979.0,8.56e-05]
[1735243685256,0.208365,95985.0,95979.0,8.56e-05]
[1735243686657,0.208374,95982.0,95979.0,8.56e-05]
[1735243686855,0.0013023,95981.0,95979.0,8.56e-05]
[1735243687228,0.208376,95980.0,95979.0,8.56e-05]
[1735243691884,0.215376,95980.0,95979.0,8.56e-05]
[1735243692261,0.208376,95980.0,95979.0,8.56e-05]
[1735243692759,0.212376,95980.0,95979.0,8.56e-05]
[1735243692971,0.2752876,95980.0,95979.0,8.56e-05]
[1735243693938,0.2712876,95980.0,95979.0,8.56e-05]
[1735243694139,0.2792876,95980.0,95979.0,0.0010856]
[1735243694336,0.2752876,95980.0,95979.0,8.56e-05]
[1735243694770,0.02088,95998.0,95979.0,8.56e-05]
[1735243694986,0.20848518,96001.0,95980.0,0.13741985]
[1735243695202,0.0001712,95991.0,95986.0,0.208361]
[1735243696070,0.0001712,95991.0,95980.0,0.13741985]
[1735243696285,0.0001712,95991.0,95990.0,0.0785]
[1735243696492,0.0001712,95991.0,95990.0,0.2285]
[1735243697141,0.0001712,95991.0,95990.0,0.15649999]
[1735243697352,0.0001712,95991.0,95990.0,0.26048631]
[1735243697563,0.0001712,95991.0,95990.0,0.66999864]
[1735243697775,0.00015418,96001.0,96000.0,0.358333]
[1735243698004,0.00015418,96001.0,96000.0,0.50921932]
[1735243698219,0.00015418,96001.0,96000.0,0.53221932]
[1735243698676,0.00015418,96001.0,96000.0,0.63221932]
[1735243698853,0.00015418,96001.0,96000.0,0.71627495]
[1735243699009,0.00015418,96001.0,96000.0,0.71927495]
[1735243699818,0.00015418,96001.0,96000.0,1.29577766]
[1735243700026,0.00015418,96001.0,96000.0,1.37427766]
[1735243700229,0.00015418,96001.0,96000.0,1.37027766]
[1735243700522,0.00115418,96001.0,96000.0,1.41065165]
[1735243700871,0.00115418,96001.0,96000.0,1.17691865]
[1735243701070,0.00215418,96001.0,96000.0,1.18491865]
[1735243701282,0.00115418,96001.0,96000.0,1.17991865]
[1735243701486,0.00115418,96001.0,96000.0,1.18391865]
[1735243701694,0.00115418,96001.0,96000.0,0.97686302]
[1735243702117,0.00115418,96001.0,96000.0,0.76453002]
[1735243702332,0.00215418,96001.0,96000.0,0.5401437]
[1735243702757,0.00315418,96001.0,96000.0,0.3981437]
[1735243703170,0.00115418,96001.0,96000.0,0.3821437]
[1735243703374,0.00115418,96001.0,96000.0,0.04037399]
[1735243703790,0.00015418,96001.0,96000.0,0.03537399]
[1735243703988,0.00015418,96001.0,96000.0,0.03937399]
[1735243704199,0.00015418,96001.0,96000.0,0.004]
[1735243704580,0.00015418,96001.0,95996.0,0.15]
[1735243704783,0.00015418,96001.0,96000.0,0.004]
[1735243705332,0.00015418,96001.0,95992.0,0.15]
[1735243705333,0.00015418,96001.0,95994.0,0.15]
[1735243705604,0.00015418,96001.0,96000.0,0.002]
[1735243706845,0.00115418,96001.0,96000.0,0.008]
[1735243707040,0.00132538,96001.0,96000.0,0.008]
[1735243707472,0.00032538,96001.0,95992.0,0.18577717]
[1735243707671,0.00032538,96001.0,95995.0,0.208343]
[1735243707853,0.00132538,96001.0,95996.0,0.15]
[1735243708254,0.00032538,96001.0,95996.0,0.15]
[1735243708435,0.00132538,96001.0,95996.0,0.15]
[1735243708637,0.00032538,96001.0,95997.0,0.208339]
[1735243708836,0.00032538,96001.0,95998.0,0.15]
[1735243710167,0.00132538,96001.0,95996.0,0.15]
[1735243710319,0.00032538,96001.0,95996.0,0.15]
[1735243710479,0.00132538,96001.0,95996.0,0.15]
[1735243710707,0.00132538,96001.0,95998.0,0.15]
[1735243711065,0.00132538,96001.0,95999.0,0.208335]
[1735243711437,0.00032538,96001.0,95999.0,0.208335]
[1735243711626,0.00132538,96001.0,95999.0,0.208335]
[1735243711864,0.00032538,96001.0,95999.0,0.208335]
[1735243712535,0.00032538,96001.0,96000.0,0.31990188]
[1735243712686,0.00032538,96001.0,96000.0,0.38188632]
[1735243713314,0.00132538,96001.0,96000.0,0.50488632]
[1735243713520,0.0001712,96009.0,96008.0,0.208315]
[1735243713741,0.0001712,96009.0,96008.0,0.46230132]
[1735243713949,0.0001712,96009.0,96008.0,0.55019645]
[1735243714785,0.0001712,96009.0,96008.0,0.89424078]
[1735243715035,0.00092351,96009.0,96008.0,0.90024078]
[1735243715171,0.00092351,96009.0,96008.0,0.95401334]
[1735243715375,0.0001712,96038.0,96008.0,1.60031334]
[1735243715595,0.00032581,96038.0,96035.0,0.208255]
[1735243717153,0.00032581,96038.0,96032.0,0.208263]
[1735243717350,0.00332581,96038.0,96032.0,0.208263]
[1735243717554,0.00332581,96038.0,96035.0,0.208255]
[1735243717977,0.00032581,96038.0,96035.0,0.208255]
[1735243718456,0.00232581,96038.0,96035.0,0.208255]
[1735243718615,0.00232581,96038.0,96024.0,0.208279]
[1735243718783,0.208253,96037.0,96027.0,0.15]
[1735243720073,0.209253,96037.0,96027.0,0.15]
[1735243720304,0.208261,96034.0,96024.0,0.02125249]
[1735243720507,0.211253,96037.0,96026.0,0.15]
[1735243720718,0.211253,96037.0,96028.0,0.15]
[1735243721110,0.208253,96037.0,96028.0,0.15]
[1735243721564,0.001,96034.0,96029.0,0.20827]
[1735243721772,0.001,96034.0,96030.0,0.208268]
[1735243722002,0.001,96034.0,96030.0,0.13626799]
[1735243722197,0.001,96034.0,96028.0,0.15]
[1735243722606,0.001,96034.0,96028.0,0.20878125]
[1735243722983,0.001,96034.0,96028.0,0.15]
[1735243723216,0.002,96037.0,96021.0,0.15]